fUST/lending_fUST_20241205
["ID","MTS","AMOUNT","RATE_DAILY","PERIOD"]
[344368484,1733381450545,-503.76687915,0.00022739,2]
[344368485,1733381450555,-513.66695907,0.00022739,2]
[344368486,1733381450569,-604.01,0.00022739,2]
[344368487,1733381450580,-500.0,0.00022739,2]
[344368488,1733381450590,-500.0,0.00022739,2]
[344368489,1733381450599,-500.0,0.00022739,2]
[344368490,1733381450609,-500.0,0.00022739,2]
[344368491,1733381450618,-500.0,0.00022739,2]
[344368492,1733381450628,-500.0,0.00022739,2]
[344368493,1733381450638,-500.0,0.00022739,2]
[344368494,1733381450648,-500.0,0.00022739,2]
[344368495,1733381450658,-500.0,0.00022739,2]
[344368496,1733381450667,-500.0,0.00022739,2]
[344368497,1733381450676,-500.0,0.00022739,2]
[344368498,1733381450686,-601.42,0.00022739,2]
[344368499,1733381450695,-500.0,0.00022739,2]
[344368500,1733381450705,-500.0,0.00022739,2]
[344368501,1733381450714,-500.0,0.00022739,2]
[344368502,1733381450724,-500.0,0.00022739,2]
[344368503,1733381450734,-500.0,0.00022739,2]
[344368504,1733381450743,-500.0,0.00022739,2]
[344368505,1733381450752,-500.0,0.00022739,2]
[344368506,1733381450762,-500.0,0.00022739,2]
[344368507,1733381450771,-500.0,0.00022739,2]
[344368508,1733381450780,-500.0,0.00022739,2]
[344368509,1733381450789,-500.0,0.00022739,2]
[344368510,1733381450799,-500.0,0.00022739,2]
[344368511,1733381450808,-500.0,0.00022739,2]
[344368512,1733381450817,-500.0,0.00022739,2]
[344368513,1733381450828,-500.0,0.00022739,2]
[344368514,1733381450838,-500.0,0.00022739,2]
[344368515,1733381450848,-500.0,0.00022739,2]
[344368516,1733381450858,-544.47,0.00022739,2]
[344368517,1733381450869,-500.0,0.00022739,2]
[344368518,1733381450879,-500.0,0.00022739,2]
[344368519,1733381450889,-500.0,0.00022739,2]
[344368520,1733381450899,-500.0,0.00022739,2]
[344368521,1733381450908,-167.33355269,0.00022739,2]
[344368522,1733381450918,-500.0,0.00022739,2]
[344368523,1733381450928,-500.0,0.00022739,2]
[344368524,1733381450937,-500.0,0.00022739,2]
[344368525,1733381450947,-500.0,0.00022739,2]
[344368526,1733381450956,-500.0,0.00022739,2]
[344368527,1733381450966,-500.0,0.00022739,2]
[344368528,1733381450975,-500.0,0.00022739,2]
[344368529,1733381450985,-500.0,0.00022739,2]
[344368530,1733381450995,-500.0,0.00022739,2]
[344368531,1733381451005,-500.0,0.00022739,2]
[344368532,1733381451014,-500.0,0.00022739,2]
[344368533,1733381451024,-500.0,0.00022739,2]
[344368534,1733381451034,-548.05142713,0.00022739,2]
[344368535,1733381451044,-502.36224609,0.00022739,2]
[344368536,1733381451053,-865.56,0.00022739,2]
[344368537,1733381451063,-500.0,0.00022739,2]
[344368538,1733381451072,-506.31114677,0.00022739,2]
[344368539,1733381451082,-500.0,0.00022739,2]
[344368540,1733381451091,-500.0,0.00022739,2]
[344368541,1733381451101,-500.0,0.00022739,2]
[344368542,1733381451110,-500.0,0.00022739,2]
[344368543,1733381451120,-500.0,0.00022739,2]
[344368544,1733381451130,-500.0,0.00022739,2]
[344368545,1733381451139,-500.0,0.00022739,2]
[344368546,1733381451148,-500.0,0.00022739,2]
[344368547,1733381451157,-500.0,0.00022739,2]
[344368548,1733381451227,-500.0,0.00022739,2]
[344368549,1733381451244,-500.0,0.00022739,2]
[344368550,1733381451253,-513.29738134,0.00022739,2]
[344368551,1733381451264,-699.59,0.00022739,2]
[344368552,1733381451273,-500.0,0.00022739,2]
[344368553,1733381451282,-500.0,0.00022739,2]
[344368554,1733381451291,-500.0,0.00022739,2]
[344368555,1733381451301,-500.0,0.00022739,2]
[344368556,1733381451310,-500.0,0.00022739,2]
[344368557,1733381451319,-531.26,0.00022739,2]
[344368558,1733381451328,-500.0,0.00022739,2]
[344368559,1733381451338,-500.0,0.00022739,2]
[344368560,1733381451347,-502.7240399,0.00022739,2]
[344368561,1733381451356,-500.0,0.00022739,2]
[344368562,1733381451365,-500.0,0.00022739,2]
[344368563,1733381451374,-500.0,0.00022739,2]
[344368564,1733381451383,-500.0,0.00022739,2]
[344368565,1733381451392,-303.62686677,0.00022739,2]
[344368566,1733381451402,-500.0,0.00022739,2]
[344368567,1733381451411,-500.0,0.00022739,2]
[344368568,1733381451420,-500.0,0.00022739,2]
[344368569,1733381451429,-500.0,0.00022739,2]
[344368570,1733381451438,-9592.93,0.00022739,2]
[344368571,1733381451447,-500.0,0.00022739,2]
[344368572,1733381451456,-623.64897787,0.00022739,2]
[344368573,1733381451466,-500.0,0.00022739,2]
[344368574,1733381451475,-953.45,0.00022739,2]
[344368575,1733381451484,-534.89,0.00022739,2]
[344368576,1733381451494,-500.0,0.00022739,2]
[344368577,1733381451503,-500.0,0.00022739,2]
[344368578,1733381451512,-500.0,0.00022739,2]
[344368579,1733381451522,-500.0,0.00022739,2]
[344368580,1733381451532,-652.9,0.00022739,2]
[344368581,1733381451542,-500.0,0.00022739,2]
[344368582,1733381451552,-531.90964486,0.00022739,2]
[344368583,1733381451562,-500.0,0.00022739,2]
[344368584,1733381451575,-500.0,0.00022739,2]
[344368585,1733381451585,-200.0,0.00022739,2]
[344368586,1733381451595,-500.0,0.00022739,2]
[344368587,1733381451604,-500.0,0.00022739,2]
[344368588,1733381451615,-890.29,0.00022739,2]
[344368589,1733381451624,-9903.48,0.00022739,2]
[344368590,1733381451633,-500.0,0.00022739,2]
[344368591,1733381451643,-495.6135505,0.00022739,2]
[344368592,1733381451654,-500.0,0.00022739,2]
[344368593,1733381451663,-1983.27,0.00022739,2]
[344368594,1733381451674,-500.0,0.00022739,2]
[344368595,1733381451683,-500.0,0.00022739,2]
[344368596,1733381451693,-500.0,0.00022739,2]
[344368597,1733381451702,-500.0,0.00022739,2]
[344368598,1733381451712,-568.92319465,0.00022739,2]
[344368599,1733381451721,-1537.63,0.00022739,2]
[344368600,1733381451731,-500.0,0.00022739,2]
[344368601,1733381451741,-500.0,0.00022739,2]
[344368602,1733381451750,-492.29663475,0.00022739,2]
[344368603,1733381451760,-570.18,0.00022739,2]
[344368604,1733381451770,-500.0,0.00022739,2]
[344368605,1733381451779,-524.30992917,0.00022739,2]
[344368606,1733381451788,-500.0,0.00022739,2]
[344368607,1733381451797,-500.0,0.00022739,2]
[344368608,1733381451807,-500.0,0.00022739,2]
[344368609,1733381451816,-155.66074075,0.00022739,2]
[344368610,1733381451825,-500.0,0.00022739,2]
[344368611,1733381451835,-500.0,0.00022739,2]
[344368612,1733381451844,-500.0,0.00022739,2]
[344368613,1733381451854,-500.0,0.00022739,2]
[344368614,1733381451863,-500.0,0.00022739,2]
[344368615,1733381451872,-500.0,0.00022739,2]
[344368616,1733381451882,-256.06984761,0.00022739,2]
[344368617,1733381451892,-500.0,0.00022739,2]
[344368618,1733381451901,-500.0,0.00022739,2]
[344368619,1733381451911,-500.0,0.00022739,2]
[344368620,1733381451920,-516.13477459,0.00022739,2]
[344368621,1733381451930,-500.0,0.00022739,2]
[344368622,1733381451940,-500.0,0.00022739,2]
[344368623,1733381451950,-500.0,0.00022739,2]
[344368624,1733381451960,-592.5,0.00022739,2]
[344368625,1733381451969,-347.13427454,0.00022739,2]
[344368626,1733381451978,-500.0,0.00022739,2]
[344368627,1733381451988,-569.71441311,0.00022739,2]
[344368628,1733381451996,-772.05,0.00022739,2]
[344368629,1733381452006,-2096.26,0.00022739,2]
[344368630,1733381452015,-509.72,0.00022739,2]
[344368631,1733381452025,-500.0,0.00022739,2]
[344368632,1733381452035,-513.84815977,0.00022739,2]
[344368633,1733381452044,-996.25,0.00022739,2]
[344368634,1733381452054,-510.73901002,0.00022739,2]
[344368635,1733381452064,-500.0,0.00022739,2]
[344368636,1733381452073,-579.32911746,0.00022739,2]
[344368637,1733381452086,-500.0,0.00022739,2]
[344368638,1733381452095,-173.64969957,0.00022739,2]
[344368639,1733381452105,-500.0,0.00022739,2]
[344368640,1733381452115,-666.26,0.00022739,2]
[344368641,1733381452125,-1060.62,0.00022739,2]
[344368642,1733381452134,-500.0,0.00022739,2]
[344368643,1733381452144,-500.0,0.00022739,2]
[344368644,1733381452153,-611.31,0.00022739,2]
[344368645,1733381452163,-2210.05,0.00022739,2]
[344368646,1733381452172,-500.0,0.00022739,2]
[344368647,1733381452181,-1001.26,0.00022739,2]
[344368648,1733381452190,-500.0,0.00022739,2]
[344368649,1733381452200,-500.0,0.00022739,2]
[344368650,1733381452210,-632.74,0.00022739,2]
[344368651,1733381452219,-500.0,0.00022739,2]
[344368652,1733381452229,-500.0,0.00022739,2]
[344368653,1733381452238,-500.0,0.00022739,2]
[344368654,1733381452248,-500.0,0.00022739,2]
[344368655,1733381452257,-500.0,0.00022739,2]
[344368656,1733381452266,-500.0,0.00022739,2]
[344368657,1733381452276,-1143.72,0.00022739,2]
[344368658,1733381452285,-593.38232742,0.00022739,2]
[344368659,1733381452294,-529.08,0.00022739,2]
[344368660,1733381452303,-500.0,0.00022739,2]
[344368661,1733381452312,-500.0,0.00022739,2]
[344368662,1733381452321,-500.0,0.00022739,2]
[344368663,1733381452333,-500.0,0.00022739,2]
[344368664,1733381452343,-500.0,0.00022739,2]
[344368665,1733381452352,-500.0,0.00022739,2]
[344368666,1733381452361,-571.49,0.00022739,2]
[344368667,1733381452370,-500.0,0.00022739,2]
[344368668,1733381452379,-500.0,0.00022739,2]
[344368669,1733381452388,-1043.63,0.00022739,2]
[344368670,1733381452398,-209.756238,0.00022747,2]
[344368671,1733381452407,-500.0,0.00022773,2]
[344368672,1733381452416,-500.0,0.00022773,2]
[344368673,1733381452425,-500.0,0.00022773,2]
[344368674,1733381452435,-500.0,0.00022773,2]
[344368675,1733381452444,-151.0,0.000228,5]
[344368676,1733381452453,-151.0,0.000228,5]
[344368677,1733381452463,-1107.36318772,0.00022845,2]
[344368678,1733381452472,-151.0,0.000229,9]
[344368679,1733381452481,-151.0,0.00022976,7]
[344368680,1733381452490,-243.10273912,0.00023,2]
[344368681,1733381452499,-157.315033,0.00023,6]
[344368682,1733381452509,-500.0,0.00023013,2]
[344368683,1733381452518,-500.0,0.00023013,2]
[344368684,1733381452527,-500.0,0.00023013,2]
[344368685,1733381452537,-505.162404,0.00023013,2]
[344368686,1733381452546,-500.0,0.00023013,2]
[344368687,1733381452555,-500.0,0.00023013,2]
[344368688,1733381452565,-500.0,0.00023013,2]
[344368689,1733381452581,-563.68,0.00023013,2]
[344368690,1733381452590,-500.0,0.00023013,2]
[344368691,1733381452600,-500.0,0.00023013,2]
[344368692,1733381452610,-500.0,0.00023013,2]
[344368693,1733381452620,-500.0,0.00023013,2]
[344368694,1733381452629,-500.0,0.00023013,2]
[344368695,1733381452639,-500.0,0.00023013,2]
[344368696,1733381452648,-500.0,0.00023013,2]
[344368697,1733381452657,-500.0,0.00023013,2]
[344368698,1733381452667,-500.0,0.00023013,2]
[344368699,1733381452676,-500.0,0.00023013,2]
[344368700,1733381452686,-500.0,0.00023013,2]
[344368701,1733381452695,-500.0,0.00023013,2]
[344368702,1733381452769,-500.0,0.00023013,2]
[344368703,1733381452779,-505.61747687,0.00023013,2]
[344368704,1733381452788,-592.79,0.00023013,2]
[344368705,1733381452798,-500.0,0.00023013,2]
[344368706,1733381452807,-500.0,0.00023013,2]
[344368707,1733381452816,-303.63898969,0.00023013,2]
[344368708,1733381452827,-500.0,0.00023013,2]
[344368709,1733381452836,-500.0,0.00023013,2]
[344368710,1733381452846,-568.44,0.00023013,2]
[344368711,1733381452855,-500.0,0.00023013,2]
[344368712,1733381452864,-500.0,0.00023013,2]
[344368713,1733381452873,-500.0,0.00023013,2]
[344368714,1733381452882,-500.0,0.00023013,2]
[344368715,1733381452891,-500.0,0.00023013,2]
[344368716,1733381452900,-525.21500361,0.00023013,2]
[344368717,1733381452910,-642.23406695,0.00023013,2]
[344368718,1733381452919,-604.01,0.00023013,2]
[344368719,1733381452929,-500.0,0.00023013,2]
[344368720,1733381452938,-500.0,0.00023013,2]
[344368721,1733381452947,-500.0,0.00023013,2]
[344368722,1733381452956,-189.30474962,0.00023013,2]
[344368723,1733381452967,-500.0,0.00023013,2]
[344368724,1733381452977,-500.0,0.00023013,2]
[344368725,1733381452987,-500.0,0.00023013,2]
[344368726,1733381452997,-500.0,0.00023013,2]
[344368727,1733381453006,-500.0,0.00023013,2]
[344368728,1733381453016,-500.0,0.00023013,2]
[344368729,1733381453025,-500.0,0.00023013,2]
[344368730,1733381453035,-601.42,0.00023013,2]
[344368731,1733381453044,-500.0,0.00023013,2]
[344368732,1733381453054,-500.0,0.00023013,2]
[344368733,1733381453064,-545.3842643,0.00023013,2]
[344368734,1733381453074,-500.0,0.00023013,2]
[344368735,1733381453087,-500.0,0.00023013,2]
[344368736,1733381453097,-500.0,0.00023013,2]
[344368737,1733381453107,-500.0,0.00023013,2]
[344368738,1733381453116,-500.0,0.00023013,2]
[344368739,1733381453126,-500.0,0.00023013,2]
[344368740,1733381453137,-500.0,0.00023013,2]
[344368741,1733381453147,-507.04163794,0.00023013,2]
[344368742,1733381453156,-500.0,0.00023013,2]
[344368743,1733381453166,-500.0,0.00023013,2]
[344368744,1733381453176,-163.41710223,0.00023013,2]
[344368745,1733381453185,-500.0,0.00023013,2]
[344368746,1733381453195,-500.0,0.00023013,2]
[344368747,1733381453204,-534.25751824,0.00023013,2]
[344368748,1733381453214,-544.47,0.00023013,2]
[344368749,1733381453223,-500.0,0.00023013,2]
[344368750,1733381453233,-500.0,0.00023013,2]
[344368751,1733381453242,-500.0,0.00023013,2]
[344368752,1733381453251,-509.69181365,0.00023013,2]
[344368753,1733381453261,-500.0,0.00023013,2]
[344368754,1733381453270,-500.0,0.00023013,2]
[344368755,1733381453280,-500.0,0.00023013,2]
[344368756,1733381453289,-500.0,0.00023013,2]
[344368757,1733381453298,-518.24340455,0.00023013,2]
[344368758,1733381453307,-500.0,0.00023013,2]
[344368759,1733381453316,-500.0,0.00023013,2]
[344368760,1733381453328,-500.0,0.00023013,2]
[344368761,1733381453337,-500.0,0.00023013,2]
[344368762,1733381453347,-500.0,0.00023013,2]
[344368763,1733381453355,-500.0,0.00023013,2]
[344368764,1733381453365,-500.0,0.00023013,2]
[344368765,1733381453375,-865.56,0.00023013,2]
[344368766,1733381453384,-500.0,0.00023013,2]
[344368767,1733381453394,-522.8318548,0.00023013,2]
[344368768,1733381453403,-397.4286164,0.00023013,2]
[344368769,1733381453412,-500.0,0.00023013,2]
[344368770,1733381453422,-510.11544493,0.00023013,2]
[344368771,1733381453431,-500.0,0.00023013,2]
[344368772,1733381453440,-166.10765683,0.00023013,2]
[344368773,1733381453450,-500.0,0.00023013,2]
[344368774,1733381453459,-500.0,0.00023013,2]
[344368775,1733381453468,-500.0,0.00023013,2]
[344368776,1733381453478,-500.0,0.00023013,2]
[344368777,1733381453487,-500.0,0.00023013,2]
[344368778,1733381453496,-699.59,0.00023013,2]
[344368779,1733381453506,-500.0,0.00023013,2]
[344368780,1733381453515,-500.0,0.00023013,2]
[344368781,1733381453525,-500.0,0.00023013,2]
[344368782,1733381453535,-500.0,0.00023013,2]
[344368783,1733381453544,-500.0,0.00023013,2]
[344368784,1733381453554,-531.26,0.00023013,2]
[344368785,1733381453565,-500.0,0.00023013,2]
[344368786,1733381453579,-500.0,0.00023013,2]
[344368787,1733381453588,-500.0,0.00023013,2]
[344368788,1733381453599,-446.87243107,0.00023013,2]
[344368789,1733381453608,-544.74151173,0.00023013,2]
[344368790,1733381453618,-500.0,0.00023013,2]
[344368791,1733381453627,-500.0,0.00023013,2]
[344368792,1733381453636,-500.0,0.00023013,2]
[344368793,1733381453646,-500.0,0.00023013,2]
[344368794,1733381453656,-267.68354271,0.00023013,2]
[344368795,1733381453665,-9592.93,0.00023013,2]
[344368796,1733381453674,-500.0,0.00023013,2]
[344368797,1733381453683,-500.0,0.00023013,2]
[344368798,1733381453692,-953.45,0.00023013,2]
[344368799,1733381453702,-534.89,0.00023013,2]
[344368800,1733381453711,-500.0,0.00023013,2]
[344368801,1733381453721,-500.0,0.00023013,2]
[344368802,1733381453731,-500.0,0.00023013,2]
[344368803,1733381453741,-652.9,0.00023013,2]
[344368804,1733381453750,-500.0,0.00023013,2]
[344368805,1733381453760,-500.0,0.00023013,2]
[344368806,1733381453769,-500.0,0.00023013,2]
[344368807,1733381453779,-200.0,0.00023013,2]
[344368808,1733381453788,-606.68,0.00023013,2]
[344368809,1733381453798,-500.0,0.00023013,2]
[344368810,1733381453808,-890.29,0.00023013,2]
[344368811,1733381453818,-9903.48,0.00023013,2]
[344368812,1733381453829,-500.0,0.00023013,2]
[344368813,1733381453838,-500.0,0.00023013,2]
[344368814,1733381453848,-1983.27,0.00023013,2]
[344368815,1733381453857,-500.0,0.00023013,2]
[344368816,1733381453867,-500.0,0.00023013,2]
[344368817,1733381453877,-500.0,0.00023013,2]
[344368818,1733381453887,-500.0,0.00023013,2]
[344368819,1733381453896,-1537.63,0.00023013,2]
[344368820,1733381453906,-500.0,0.00023013,2]
[344368821,1733381453915,-500.0,0.00023013,2]
[344368822,1733381453925,-500.0,0.00023013,2]
[344368823,1733381453935,-570.18,0.00023013,2]
[344368824,1733381453944,-500.0,0.00023013,2]
[344368825,1733381453954,-500.0,0.00023013,2]
[344368826,1733381453965,-500.0,0.00023013,2]
[344368827,1733381453974,-500.0,0.00023013,2]
[344368828,1733381453983,-179.09393258,0.00023013,2]
[344368829,1733381453993,-500.0,0.00023013,2]
[344368830,1733381454002,-500.0,0.00023013,2]
[344368831,1733381454012,-500.0,0.00023013,2]
[344368832,1733381454021,-500.0,0.00023013,2]
[344368833,1733381454030,-500.0,0.00023013,2]
[344368834,1733381454039,-500.0,0.00023013,2]
[344368835,1733381454049,-500.0,0.00023013,2]
[344368836,1733381454058,-500.0,0.00023013,2]
[344368837,1733381454067,-500.0,0.00023013,2]
[344368838,1733381454079,-500.0,0.00023013,2]
[344368839,1733381454088,-592.5,0.00023013,2]
[344368840,1733381454098,-500.0,0.00023013,2]
[344368841,1733381454107,-772.05,0.00023013,2]
[344368842,1733381454116,-2096.26,0.00023013,2]
[344368843,1733381454194,-509.72,0.00023013,2]
[344368844,1733381454204,-500.0,0.00023013,2]
[344368845,1733381454213,-996.25,0.00023013,2]
[344368846,1733381454223,-500.0,0.00023013,2]
[344368847,1733381454232,-500.0,0.00023013,2]
[344368848,1733381454242,-500.0,0.00023013,2]
[344368849,1733381454252,-1060.62,0.00023013,2]
[344368850,1733381454261,-666.26,0.00023013,2]
[344368851,1733381454271,-500.0,0.00023013,2]
[344368852,1733381454280,-500.0,0.00023013,2]
[344368853,1733381454290,-611.31,0.00023013,2]
[344368854,1733381454300,-2210.05,0.00023013,2]
[344368855,1733381454310,-500.0,0.00023013,2]
[344368856,1733381454322,-1001.26,0.00023013,2]
[344368857,1733381454334,-500.0,0.00023013,2]
[344368858,1733381454343,-500.0,0.00023013,2]
[344368859,1733381454352,-632.74,0.00023013,2]
[344368860,1733381454362,-152.70905498,0.00023013,2]
[344368861,1733381454371,-500.0,0.00023013,2]
[344368862,1733381454380,-500.0,0.00023013,2]
[344368863,1733381454390,-500.0,0.00023013,2]
[344368864,1733381454399,-500.0,0.00023013,2]
[344368865,1733381454409,-500.0,0.00023013,2]
[344368866,1733381454419,-1143.72,0.00023013,2]
[344368867,1733381454428,-529.08,0.00023013,2]
[344368868,1733381454438,-512.5,0.00023013,2]
[344368869,1733381454448,-503.8611033,0.00023013,2]
[344368870,1733381454458,-500.0,0.00023013,2]
[344368871,1733381454468,-500.0,0.00023013,2]
[344368872,1733381454478,-500.0,0.00023013,2]
[344368873,1733381454488,-500.0,0.00023013,2]
[344368874,1733381454497,-571.49,0.00023013,2]
[344368875,1733381454507,-500.0,0.00023013,2]
[344368876,1733381454516,-500.0,0.00023013,2]
[344368877,1733381454526,-1043.63,0.00023013,2]
[344368878,1733381454535,-325.0,0.00023014,2]
[344368879,1733381454545,-157.0,0.00023014,2]
[344368880,1733381454554,-151.0,0.000231,6]
[344368881,1733381454564,-1107.36318772,0.00023187,2]
[344368882,1733381454578,-406.04677464,0.000232,2]
[344368883,1733381454588,-151.0,0.00023249,7]
[344368884,1733381454597,-500.0,0.0002326,2]
[344368885,1733381454607,-517.99030498,0.00023287,2]
[344368886,1733381454616,-514.91278923,0.00023287,2]
[344368887,1733381454626,-500.0,0.00023287,2]
[344368888,1733381454636,-500.0,0.00023287,2]
[344368889,1733381454646,-500.0,0.00023287,2]
[344368890,1733381454656,-500.0,0.00023287,2]
[344368891,1733381454665,-563.68,0.00023287,2]
[344368892,1733381454675,-500.0,0.00023287,2]
[344368893,1733381454684,-500.0,0.00023287,2]
[344368894,1733381454694,-500.0,0.00023287,2]
[344368895,1733381454704,-500.0,0.00023287,2]
[344368896,1733381454713,-500.0,0.00023287,2]
[344368897,1733381454723,-500.0,0.00023287,2]
[344368898,1733381454732,-514.03490689,0.00023287,2]
[344368899,1733381454742,-500.0,0.00023287,2]
[344368900,1733381454752,-500.0,0.00023287,2]
[344368901,1733381454761,-500.0,0.00023287,2]
[344368902,1733381454771,-273.6660551,0.00023287,2]
[344368903,1733381454780,-507.15875906,0.00023287,2]
[344368904,1733381454790,-500.0,0.00023287,2]
[344368905,1733381454799,-592.79,0.00023287,2]
[344368906,1733381454809,-500.0,0.00023287,2]
[344368907,1733381454819,-500.0,0.00023287,2]
[344368908,1733381454829,-500.0,0.00023287,2]
[344368909,1733381454838,-500.0,0.00023287,2]
[344368910,1733381454848,-568.44,0.00023287,2]
[344368911,1733381454857,-500.0,0.00023287,2]
[344368912,1733381454867,-500.0,0.00023287,2]
[344368913,1733381454877,-500.0,0.00023287,2]
[344368914,1733381454887,-500.0,0.00023287,2]
[344368915,1733381454897,-474.75893442,0.00023287,2]
[344368916,1733381454906,-604.01,0.00023287,2]
[344368917,1733381454915,-500.0,0.00023287,2]
[344368918,1733381454925,-500.0,0.00023287,2]
[344368919,1733381454935,-500.0,0.00023287,2]
[344368920,1733381454945,-595.35206538,0.00023287,2]
[344368921,1733381454954,-500.0,0.00023287,2]
[344368922,1733381454963,-500.0,0.00023287,2]
[344368923,1733381454972,-476.96130249,0.00023287,2]
[344368924,1733381454982,-500.0,0.00023287,2]
[344368925,1733381454992,-500.0,0.00023287,2]
[344368926,1733381455002,-614.43433168,0.00023287,2]
[344368927,1733381455011,-601.42,0.00023287,2]
[344368928,1733381455021,-500.0,0.00023287,2]
[344368929,1733381455031,-267.34906844,0.00023287,2]
[344368930,1733381455040,-500.0,0.00023287,2]
[344368931,1733381455050,-500.0,0.00023287,2]
[344368932,1733381455059,-500.0,0.00023287,2]
[344368933,1733381455069,-500.0,0.00023287,2]
[344368934,1733381455079,-500.0,0.00023287,2]
[344368935,1733381455089,-500.0,0.00023287,2]
[344368936,1733381455098,-500.0,0.00023287,2]
[344368937,1733381455108,-500.0,0.00023287,2]
[344368938,1733381455117,-183.90632322,0.00023287,2]
[344368939,1733381455127,-500.0,0.00023287,2]
[344368940,1733381455136,-500.0,0.00023287,2]
[344368941,1733381455146,-544.47,0.00023287,2]
[344368942,1733381455155,-500.0,0.00023287,2]
[344368943,1733381455166,-500.0,0.00023287,2]
[344368944,1733381455176,-500.0,0.00023287,2]
[344368945,1733381455186,-500.0,0.00023287,2]
[344368946,1733381455195,-500.0,0.00023287,2]
[344368947,1733381455206,-500.0,0.00023287,2]
[344368948,1733381455216,-500.0,0.00023287,2]
[344368949,1733381455226,-500.0,0.00023287,2]
[344368950,1733381455235,-500.0,0.00023287,2]
[344368951,1733381455245,-500.0,0.00023287,2]
[344368952,1733381455255,-500.0,0.00023287,2]
[344368953,1733381455265,-500.0,0.00023287,2]
[344368954,1733381455276,-500.0,0.00023287,2]
[344368955,1733381455285,-500.0,0.00023287,2]
[344368956,1733381455295,-865.56,0.00023287,2]
[344368957,1733381455305,-500.0,0.00023287,2]
[344368958,1733381455314,-500.0,0.00023287,2]
[344368959,1733381455324,-500.0,0.00023287,2]
[344368960,1733381455340,-500.0,0.00023287,2]
[344368961,1733381455350,-500.0,0.00023287,2]
[344368962,1733381455360,-500.0,0.00023287,2]
[344368963,1733381455369,-500.0,0.00023287,2]
[344368964,1733381455378,-500.0,0.00023287,2]
[344368965,1733381455388,-699.59,0.00023287,2]
[344368966,1733381455397,-500.0,0.00023287,2]
[344368967,1733381455407,-510.51346997,0.00023287,2]
[344368968,1733381455416,-500.0,0.00023287,2]
[344368969,1733381455425,-183.50710291,0.00023287,2]
[344368970,1733381455435,-500.0,0.00023287,2]
[344368971,1733381455500,-531.26,0.00023287,2]
[344368972,1733381455518,-500.0,0.00023287,2]
[344368973,1733381455527,-500.0,0.00023287,2]
[344368974,1733381455537,-500.0,0.00023287,2]
[344368975,1733381455548,-514.96956438,0.00023287,2]
[344368976,1733381455558,-500.0,0.00023287,2]
[344368977,1733381455569,-500.0,0.00023287,2]
[344368978,1733381455582,-500.0,0.00023287,2]
[344368979,1733381455591,-9592.93,0.00023287,2]
[344368980,1733381455600,-500.0,0.00023287,2]
[344368981,1733381455610,-500.0,0.00023287,2]
[344368982,1733381455620,-953.45,0.00023287,2]
[344368983,1733381455630,-534.89,0.00023287,2]